fUSD/lending_fUSD_20250522
["ID","MTS","AMOUNT","RATE_DAILY","PERIOD"]
[362010107,1747935054911,-420.0,0.00033697,5]
[362010108,1747935054920,-503.81,0.00033697,5]
[362010109,1747935054929,-1263.37,0.00033697,5]
[362010110,1747935054939,-517.04,0.00033697,5]
[362010111,1747935054948,-536.17,0.00033697,5]
[362010112,1747935054957,-420.0,0.00033697,5]
[362010113,1747935054967,-420.0,0.00033697,5]
[362010114,1747935054976,-420.0,0.00033697,5]
[362010115,1747935054985,-517.27,0.00033697,5]
[362010116,1747935054994,-420.0,0.00033697,5]
[362010117,1747935055003,-420.0,0.00033697,5]
[362010118,1747935055013,-521.46,0.00033697,5]
[362010119,1747935055023,-1985.71,0.00033697,2]
[362010120,1747935055032,-742.81,0.00033697,5]
[362010121,1747935055042,-1151.71,0.00033697,5]
[362010122,1747935055052,-420.0,0.00033697,5]
[362010123,1747935055061,-469.35,0.00033697,5]
[362010124,1747935055071,-420.0,0.00033697,5]
[362010125,1747935055081,-420.0,0.00033697,5]
[362010126,1747935055091,-420.0,0.00033697,5]
[362010127,1747935055100,-420.0,0.00033697,5]
[362010128,1747935055110,-625.55,0.00033697,5]
[362010129,1747935055119,-420.0,0.00033697,5]
[362010130,1747935055132,-420.0,0.00033697,5]
[362010131,1747935055141,-592.81,0.00033697,5]
[362010132,1747935055150,-420.0,0.00033697,5]
[362010133,1747935055160,-570.36,0.00033697,5]
[362010134,1747935055171,-420.0,0.00033697,5]
[362010135,1747935055180,-420.0,0.00033697,5]
[362010136,1747935055190,-759.32,0.00033697,5]
[362010137,1747935055199,-432.61,0.00033697,5]
[362010138,1747935055210,-420.0,0.00033697,5]
[362010139,1747935055219,-420.0,0.00033697,5]
[362010140,1747935055229,-650.73,0.00033697,5]
[362010141,1747935055238,-637.2,0.00033697,5]
[362010142,1747935055249,-420.0,0.00033697,5]
[362010143,1747935055258,-420.0,0.00033697,5]
[362010144,1747935055267,-420.0,0.00033697,5]
[362010145,1747935055276,-420.0,0.00033697,5]
[362010146,1747935055286,-602.38,0.00033697,5]
[362010147,1747935055295,-420.0,0.00033698,5]
[362010148,1747935055306,-420.0,0.00033698,5]
[362010149,1747935055315,-300.0,0.00033698,5]
[362010150,1747935055325,-597.49,0.00033698,5]
[362010151,1747935055336,-420.14,0.00033698,5]
[362010152,1747935055346,-420.0,0.00033698,5]
[362010153,1747935055355,-420.0,0.00033698,5]
[362010154,1747935055365,-420.0,0.00033698,5]
[362010155,1747935055374,-420.0,0.00033698,5]
[362010156,1747935055383,-420.0,0.00033698,5]
[362010157,1747935055392,-420.0,0.00033698,5]
[362010158,1747935055401,-420.0,0.00033698,5]
[362010159,1747935055411,-427.8,0.00033698,5]
[362010160,1747935055420,-420.0,0.00033698,5]
[362010161,1747935055430,-420.0,0.00033698,5]
[362010162,1747935055439,-420.0,0.00033698,5]
[362010163,1747935055449,-420.0,0.00033698,5]
[362010164,1747935055460,-421.55,0.00033698,5]
[362010165,1747935055471,-420.0,0.00033698,5]
[362010166,1747935055480,-480.98710425,0.00033698,5]
[362010167,1747935055490,-420.0,0.00033698,5]
[362010168,1747935055499,-420.0,0.00033698,5]
[362010169,1747935055508,-420.0,0.00033698,5]
[362010170,1747935055518,-420.0,0.00033698,5]
[362010171,1747935055669,-420.0,0.00033698,5]
[362010172,1747935055680,-420.0,0.00033698,5]
[362010173,1747935055690,-420.0,0.00033698,5]
[362010174,1747935055699,-420.0,0.00033698,5]
[362010175,1747935055709,-420.0,0.00033698,5]
[362010176,1747935055719,-420.0,0.00033698,5]
[362010177,1747935055729,-420.0,0.00033698,5]
[362010178,1747935055739,-455.43,0.00033698,5]
[362010179,1747935055749,-420.0,0.00033698,5]
[362010180,1747935055759,-420.0,0.00033698,5]
[362010181,1747935055769,-603.05,0.00033698,5]
[362010182,1747935055779,-420.0,0.00033698,5]
[362010183,1747935055789,-420.0,0.00033698,5]
[362010184,1747935055799,-420.0,0.00033698,5]
[362010185,1747935055809,-420.0,0.00033698,5]
[362010186,1747935055818,-420.0,0.00033698,5]
[362010187,1747935055828,-420.0,0.00033698,5]
[362010188,1747935055838,-454.01,0.00033698,5]
[362010189,1747935055847,-420.0,0.00033698,5]
[362010190,1747935055858,-420.0,0.00033698,5]
[362010191,1747935055868,-420.0,0.00033698,5]
[362010192,1747935055879,-420.0,0.00033698,5]
[362010193,1747935055888,-420.0,0.00033698,5]
[362010194,1747935055898,-420.0,0.00033698,5]
[362010195,1747935055908,-420.0,0.00033698,5]
[362010196,1747935055917,-420.0,0.00033698,5]
[362010197,1747935055927,-457.94,0.00033698,5]
[362010198,1747935055937,-420.0,0.00033698,5]
[362010199,1747935055946,-956.72,0.00033698,5]
[362010200,1747935055956,-564.7,0.00033698,5]
[362010201,1747935055966,-483.05,0.00033698,5]
[362010202,1747935055976,-445.62471192,0.00033698,5]
[362010203,1747935055986,-795.32,0.00033698,5]
[362010204,1747935056000,-420.0,0.00033698,5]
[362010205,1747935056010,-465.07,0.00033698,5]
[362010206,1747935056020,-456.27,0.00033698,5]
[362010207,1747935056030,-420.0,0.00033698,5]
[362010208,1747935056041,-420.0,0.00033698,5]
[362010209,1747935056051,-420.0,0.00033698,5]
[362010210,1747935056062,-420.0,0.00033698,5]
[362010211,1747935056072,-652.27,0.00033698,5]
[362010212,1747935056083,-420.0,0.00033698,5]
[362010213,1747935056094,-552.16,0.00033698,5]
[362010214,1747935056104,-420.0,0.00033698,5]
[362010215,1747935056114,-420.0,0.00033698,5]
[362010216,1747935056125,-616.4,0.00033698,5]
[362010217,1747935056140,-420.0,0.00033698,5]
[362010218,1747935056150,-420.0,0.00033698,5]
[362010219,1747935056160,-420.0,0.00033698,5]
[362010220,1747935056171,-420.0,0.00033698,5]
[362010221,1747935056181,-420.0,0.00033698,5]
[362010222,1747935056191,-420.0,0.00033698,5]
[362010223,1747935056201,-692.55,0.00033698,5]
[362010224,1747935056215,-420.0,0.00033698,5]
[362010225,1747935056225,-497.14,0.00033698,5]
[362010226,1747935056235,-1120.41,0.00033698,5]
[362010227,1747935056247,-420.0,0.00033698,5]
[362010228,1747935056256,-420.0,0.00033698,5]
[362010229,1747935056266,-420.0,0.00033698,5]
[362010230,1747935056276,-420.0,0.00033698,5]
[362010231,1747935056286,-709.8,0.00033698,5]
[362010232,1747935056296,-420.0,0.00033698,5]
[362010233,1747935056306,-420.0,0.00033698,5]
[362010234,1747935056315,-545.28,0.00033698,5]
[362010235,1747935056326,-804.9,0.00033698,5]
[362010236,1747935056336,-420.0,0.00033698,5]
[362010237,1747935056346,-420.0,0.00033698,5]
[362010238,1747935056356,-420.0,0.00033698,5]
[362010239,1747935056366,-714.59,0.00033698,5]
[362010240,1747935056379,-420.0,0.00033698,5]
[362010241,1747935056389,-420.0,0.00033698,5]
[362010242,1747935056400,-529.89,0.00033698,5]
[362010243,1747935056411,-420.0,0.00033698,5]
[362010244,1747935056420,-420.0,0.00033698,5]
[362010245,1747935056430,-420.0,0.00033698,5]
[362010246,1747935056439,-507.74,0.00033698,5]
[362010247,1747935056450,-657.62,0.00033698,5]
[362010248,1747935056461,-420.0,0.00033698,5]
[362010249,1747935056471,-841.13,0.00033698,5]
[362010250,1747935056482,-420.0,0.00033698,5]
[362010251,1747935056492,-420.0,0.00033698,5]
[362010252,1747935056502,-420.0,0.00033698,5]
[362010253,1747935056513,-420.0,0.00033698,5]
[362010254,1747935056523,-150.0,0.00033699,2]
[362010255,1747935056532,-150.0,0.00033699,2]
[362010256,1747935056542,-150.0,0.00033699,2]
[362010257,1747935056552,-150.0,0.00033699,2]
[362010258,1747935056562,-150.0,0.00033699,2]
[362010259,1747935056571,-317.42,0.00033699,2]
[362010260,1747935056582,-266.56964377,0.00033871,2]
[362010261,1747935056591,-201.63740286,0.000339,29]
[362010262,1747935056601,-290.8773225,0.0003396,5]
[362010263,1747935056611,-45090.369088,0.00033961,2]
[362010264,1747935056620,-16103.7032457,0.00033962,2]
[362010265,1747935056630,-420.0,0.00033971,5]
[362010266,1747935056639,-420.0,0.00033971,5]
[362010267,1747935056649,-420.0,0.00033971,5]
[362010268,1747935056659,-420.0,0.00033971,5]
[362010269,1747935056669,-420.0,0.00033971,5]
[362010270,1747935056679,-420.0,0.00033971,5]
[362010271,1747935056689,-420.0,0.00033971,5]
[362010272,1747935056700,-420.0,0.00033971,5]
[362010273,1747935056710,-420.0,0.00033971,5]
[362010274,1747935056720,-420.0,0.00033971,5]
[362010275,1747935056730,-565.91654341,0.00033971,5]
[362010276,1747935056739,-250.0,0.00033971,5]
[362010277,1747935056749,-420.0,0.00033971,5]
[362010278,1747935056759,-541.29599414,0.00033971,5]
[362010279,1747935056770,-420.0,0.00033971,5]
[362010280,1747935056780,-420.0,0.00033971,5]
[362010281,1747935056789,-420.0,0.00033971,5]
[362010282,1747935056800,-487.5,0.00033971,5]
[362010283,1747935056809,-420.0,0.00033971,5]
[362010284,1747935056819,-420.0,0.00033971,5]
[362010285,1747935056829,-420.0,0.00033971,5]
[362010286,1747935056839,-275.73251893,0.00033971,5]
[362010287,1747935056849,-420.0,0.00033971,5]
[362010288,1747935056859,-420.0,0.00033971,5]
[362010289,1747935056869,-420.0,0.00033971,5]
[362010290,1747935056879,-420.0,0.00033971,5]
[362010291,1747935056889,-420.0,0.00033971,5]
[362010292,1747935056899,-420.0,0.00033971,5]
[362010293,1747935056910,-420.0,0.00033971,5]
[362010294,1747935056919,-420.0,0.00033971,5]
[362010295,1747935056929,-420.0,0.00033971,5]
[362010296,1747935056939,-420.0,0.00033971,5]
[362010297,1747935056949,-420.0,0.00033971,5]
[362010298,1747935056959,-420.0,0.00033971,5]
[362010299,1747935056968,-420.0,0.00033971,5]
[362010300,1747935056978,-420.0,0.00033971,5]
[362010301,1747935056988,-420.0,0.00033971,5]
[362010302,1747935056998,-420.0,0.00033971,5]
[362010303,1747935057008,-420.0,0.00033971,5]
[362010304,1747935057018,-420.0,0.00033971,5]
[362010305,1747935057027,-420.0,0.00033971,5]
[362010306,1747935057037,-420.0,0.00033971,5]
[362010307,1747935057047,-483.36,0.00033971,5]
[362010308,1747935057057,-420.0,0.00033971,5]
[362010309,1747935057066,-420.0,0.00033971,5]
[362010310,1747935057076,-420.0,0.00033971,5]
[362010311,1747935057088,-420.0,0.00033971,5]
[362010312,1747935057098,-420.0,0.00033971,5]
[362010313,1747935057108,-420.0,0.00033971,5]
[362010314,1747935057119,-420.0,0.00033971,5]
[362010315,1747935057129,-420.0,0.00033971,5]
[362010316,1747935057142,-420.0,0.00033971,5]
[362010317,1747935057152,-420.0,0.00033971,5]
[362010318,1747935057161,-420.0,0.00033971,5]
[362010319,1747935057171,-420.0,0.00033971,5]
[362010320,1747935057181,-420.0,0.00033971,5]
[362010321,1747935057190,-545.28,0.00033971,5]
[362010322,1747935057200,-420.0,0.00033971,5]
[362010323,1747935057212,-520.34,0.00033971,5]
[362010324,1747935057222,-420.0,0.00033971,5]
[362010325,1747935057232,-420.0,0.00033971,5]
[362010326,1747935057242,-420.0,0.00033971,5]
[362010327,1747935057252,-420.0,0.00033971,5]
[362010328,1747935057262,-420.0,0.00033971,5]
[362010329,1747935057271,-420.0,0.00033971,5]
[362010330,1747935057281,-488.55,0.00033971,5]
[362010331,1747935057290,-420.0,0.00033971,5]
[362010332,1747935057300,-420.0,0.00033971,5]
[362010333,1747935057310,-420.0,0.00033971,5]
[362010334,1747935057319,-420.0,0.00033971,5]
[362010335,1747935057330,-487.89,0.00033971,5]
[362010336,1747935057340,-420.0,0.00033971,5]
[362010337,1747935057350,-420.0,0.00033971,5]
[362010338,1747935057359,-420.0,0.00033971,5]
[362010339,1747935057369,-420.0,0.00033971,5]
[362010340,1747935057379,-420.0,0.00033971,5]
[362010341,1747935057388,-445.26,0.00033971,5]
[362010342,1747935057398,-463.05154406,0.00033971,5]
[362010343,1747935057408,-420.0,0.00033971,5]
[362010344,1747935057418,-483.68,0.00033971,5]
[362010345,1747935057428,-420.0,0.00033971,5]
[362010346,1747935057438,-420.0,0.00033971,5]
[362010347,1747935057447,-420.0,0.00033971,5]
[362010348,1747935057457,-420.0,0.00033971,5]
[362010349,1747935057467,-420.0,0.00033971,5]
[362010350,1747935057476,-420.0,0.00033971,5]
[362010351,1747935057487,-420.0,0.00033971,5]
[362010352,1747935057496,-420.0,0.00033971,5]
[362010353,1747935057506,-420.0,0.00033971,5]
[362010354,1747935057515,-467.6,0.00033971,5]
[362010355,1747935057525,-529.34,0.00033971,5]
[362010356,1747935057535,-420.0,0.00033971,5]
[362010357,1747935057544,-420.0,0.00033971,5]
[362010358,1747935057553,-420.0,0.00033971,5]
[362010359,1747935057563,-150.812497,0.00033971,5]
[362010360,1747935057573,-420.0,0.00033971,5]
[362010361,1747935057584,-420.0,0.00033971,5]
[362010362,1747935057593,-814.06,0.00033971,5]
[362010363,1747935057603,-430.11,0.00033971,5]
[362010364,1747935057612,-420.0,0.00033971,5]
[362010365,1747935057622,-545.18,0.00033971,5]
[362010366,1747935057631,-420.0,0.00033971,5]
[362010367,1747935057641,-420.0,0.00033971,5]
[362010368,1747935057651,-420.0,0.00033971,5]
[362010369,1747935057662,-420.0,0.00033971,5]
[362010370,1747935057671,-420.0,0.00033971,5]
[362010371,1747935057681,-420.0,0.00033971,5]
[362010372,1747935057690,-545.63272352,0.00033971,5]
[362010373,1747935057700,-420.0,0.00033971,5]
[362010374,1747935057710,-420.0,0.00033971,5]
[362010375,1747935057721,-420.0,0.00033971,5]
[362010376,1747935057730,-420.0,0.00033971,5]
[362010377,1747935057740,-420.0,0.00033971,5]
[362010378,1747935057750,-152.959474,0.00033971,5]
[362010379,1747935057760,-420.0,0.00033971,5]
[362010380,1747935057771,-515.22,0.00033971,5]
[362010381,1747935057780,-420.0,0.00033971,5]
[362010382,1747935057791,-540.09,0.00033971,5]
[362010383,1747935057800,-1107.41,0.00033971,5]
[362010384,1747935057810,-420.0,0.00033971,5]
[362010385,1747935057819,-420.0,0.00033971,5]
[362010386,1747935057829,-420.0,0.00033971,5]
[362010387,1747935058139,-171.36148027,0.00033971,5]
[362010388,1747935058156,-420.0,0.00033971,5]
[362010389,1747935058167,-420.0,0.00033971,5]
[362010390,1747935058179,-420.0,0.00033971,5]
[362010391,1747935058190,-420.0,0.00033971,5]
[362010392,1747935058199,-420.0,0.00033971,5]
[362010393,1747935058210,-420.0,0.00033971,5]
[362010394,1747935058221,-420.0,0.00033971,5]
[362010395,1747935058232,-420.0,0.00033971,5]
[362010396,1747935058242,-420.0,0.00033971,5]
[362010397,1747935058251,-420.0,0.00033971,5]
[362010398,1747935058260,-420.0,0.00033971,5]
[362010399,1747935058271,-420.0,0.00033971,5]
[362010400,1747935058282,-420.0,0.00033971,5]
[362010401,1747935058292,-420.0,0.00033971,5]
[362010402,1747935058302,-420.0,0.00033971,5]
[362010403,1747935058311,-420.0,0.00033971,5]
[362010404,1747935058321,-420.0,0.00033971,5]
[362010405,1747935058331,-420.0,0.00033971,5]
[362010406,1747935058342,-420.0,0.00033971,5]
[362010407,1747935058352,-474.31,0.00033971,5]
[362010408,1747935058362,-420.0,0.00033971,5]
[362010409,1747935058371,-466.91125335,0.00033971,5]
[362010410,1747935058380,-420.0,0.00033971,5]
[362010411,1747935058389,-420.0,0.00033971,5]
[362010412,1747935058398,-420.0,0.00033971,5]
[362010413,1747935058409,-519.78,0.00033971,5]
[362010414,1747935058419,-420.0,0.00033971,5]
[362010415,1747935058429,-420.0,0.00033971,5]
[362010416,1747935058438,-420.0,0.00033971,5]
[362010417,1747935058449,-420.0,0.00033971,5]
[362010418,1747935058458,-420.0,0.00033971,5]
[362010419,1747935058469,-420.0,0.00033971,5]
[362010420,1747935058479,-437.63,0.00033971,5]
[362010421,1747935058488,-598.72,0.00033971,5]
[362010422,1747935058498,-573.23,0.00033971,5]
[362010423,1747935058509,-420.0,0.00033971,5]
[362010424,1747935058519,-420.0,0.00033971,5]
[362010425,1747935058529,-420.0,0.00033971,5]
[362010426,1747935058538,-420.0,0.00033971,5]
[362010427,1747935058549,-559.0,0.00033971,5]
[362010428,1747935058558,-420.0,0.00033971,5]
[362010429,1747935058568,-420.0,0.00033971,5]
[362010430,1747935058578,-420.0,0.00033971,5]
[362010431,1747935058589,-451.99,0.00033971,5]
[362010432,1747935058598,-420.0,0.00033971,5]
[362010433,1747935058608,-431.02,0.00033971,5]
[362010434,1747935058616,-420.0,0.00033971,5]
[362010435,1747935058626,-420.0,0.00033971,5]
[362010436,1747935058636,-420.0,0.00033971,5]
[362010437,1747935058646,-420.0,0.00033971,5]
[362010438,1747935058657,-420.0,0.00033971,5]
[362010439,1747935058667,-420.0,0.00033971,5]
[362010440,1747935058677,-460.17,0.00033971,5]
[362010441,1747935058686,-420.0,0.00033971,5]
[362010442,1747935058697,-420.0,0.00033971,5]
[362010443,1747935058707,-420.0,0.00033971,5]
[362010444,1747935058716,-420.0,0.00033971,5]
[362010445,1747935058725,-420.0,0.00033971,5]
[362010446,1747935058734,-420.0,0.00033971,5]
[362010447,1747935058743,-420.0,0.00033971,5]
[362010448,1747935058753,-467.16,0.00033971,5]
[362010449,1747935058762,-420.0,0.00033971,5]
[362010450,1747935058771,-420.0,0.00033971,5]
[362010451,1747935058782,-3853.46,0.00033971,5]
[362010452,1747935058793,-772.8,0.00033971,5]
[362010453,1747935058802,-420.0,0.00033971,5]
[362010454,1747935058812,-420.0,0.00033971,5]
[362010455,1747935058821,-420.0,0.00033971,5]
[362010456,1747935058830,-420.0,0.00033971,5]
[362010457,1747935058839,-502.5,0.00033971,5]
[362010458,1747935058849,-494.65,0.00033971,5]
[362010459,1747935058858,-420.0,0.00033971,5]
[362010460,1747935058868,-509.71,0.00033971,5]
[362010461,1747935058878,-450.9,0.00033971,5]
[362010462,1747935058888,-420.0,0.00033971,5]
[362010463,1747935058899,-515.75,0.00033971,5]
[362010464,1747935058909,-2031.29,0.00033971,5]
[362010465,1747935058919,-420.0,0.00033971,5]
[362010466,1747935058929,-695.15,0.00033971,5]
[362010467,1747935058940,-549.77,0.00033971,5]
[362010468,1747935058950,-420.0,0.00033971,5]
[362010469,1747935058960,-420.0,0.00033971,5]
[362010470,1747935058969,-420.0,0.00033971,5]
[362010471,1747935058978,-420.0,0.00033971,5]
[362010472,1747935058987,-420.0,0.00033971,5]
[362010473,1747935058996,-420.0,0.00033971,5]
[362010474,1747935059006,-539.71,0.00033971,5]
[362010475,1747935059015,-546.16,0.00033971,5]
[362010476,1747935059024,-420.0,0.00033971,5]
[362010477,1747935059033,-420.0,0.00033971,5]
[362010478,1747935059042,-1565.37,0.00033971,5]
[362010479,1747935059051,-426.73,0.00033971,5]
[362010480,1747935059061,-482.45,0.00033971,5]
[362010481,1747935059073,-420.0,0.00033971,5]
[362010482,1747935059083,-420.0,0.00033971,5]
[362010483,1747935059092,-209.5743512,0.00033971,5]
[362010484,1747935059103,-4352.7,0.00033971,5]
[362010485,1747935059114,-420.0,0.00033971,5]
[362010486,1747935059124,-3225.07,0.00033971,5]
[362010487,1747935059137,-674.14,0.00033971,5]
[362010488,1747935059148,-1523.03,0.00033971,5]
[362010489,1747935059158,-420.0,0.00033971,5]
[362010490,1747935059167,-420.0,0.00033971,5]
[362010491,1747935059178,-867.25,0.00033971,5]
[362010492,1747935059189,-1360.92,0.00033971,5]
[362010493,1747935059199,-420.0,0.00033971,5]
[362010494,1747935059211,-420.0,0.00033971,5]
[362010495,1747935059221,-420.0,0.00033971,5]
[362010496,1747935059232,-443.04,0.00033971,5]
[362010497,1747935059241,-2555.07,0.00033971,5]
[362010498,1747935059250,-420.0,0.00033971,5]
[362010499,1747935059259,-420.0,0.00033971,5]
[362010500,1747935059268,-462.41,0.00033971,5]
[362010501,1747935059278,-420.0,0.00033971,5]
[362010502,1747935059287,-14415.92,0.00033971,5]
[362010503,1747935059296,-867.04,0.00033971,5]
[362010504,1747935059305,-420.0,0.00033971,5]
[362010505,1747935059314,-420.0,0.00033971,5]
[362010506,1747935059324,-976.26,0.00033971,5]
[362010507,1747935059334,-420.0,0.00033971,5]
[362010508,1747935059343,-582.57,0.00033971,5]
[362010509,1747935059353,-1157.52,0.00033971,5]
[362010510,1747935059362,-420.0,0.00033971,5]
[362010511,1747935059372,-437.12,0.00033971,5]
[362010512,1747935059382,-424.93,0.00033971,5]
[362010513,1747935059392,-420.0,0.00033971,5]
[362010514,1747935059402,-527.89,0.00033971,5]
[362010515,1747935059411,-420.0,0.00033971,5]
[362010516,1747935059423,-420.0,0.00033971,5]
[362010517,1747935059434,-420.0,0.00033971,5]
[362010518,1747935059444,-420.0,0.00033971,5]
[362010519,1747935059455,-420.0,0.00033971,5]
[362010520,1747935059465,-534.29,0.00033971,5]
[362010521,1747935059474,-574.48,0.00033971,5]
[362010522,1747935059483,-1196.46,0.00033971,5]
[362010523,1747935059493,-636.39,0.00033971,5]
[362010524,1747935059502,-1119.48,0.00033971,2]
[362010525,1747935059512,-498.52,0.00033971,5]
[362010526,1747935059521,-806.79,0.00033971,5]
[362010527,1747935059531,-572.8,0.00033971,5]
[362010528,1747935059541,-420.0,0.00033971,5]
[362010529,1747935059551,-335.39512264,0.00033971,5]
[362010530,1747935059560,-420.0,0.00033971,5]
[362010531,1747935059569,-420.0,0.00033971,5]
[362010532,1747935059579,-420.0,0.00033971,5]
[362010533,1747935059589,-420.0,0.00033971,5]
[362010534,1747935059598,-849.42,0.00033971,5]
[362010535,1747935059607,-507.68,0.00033971,5]
[362010536,1747935059616,-420.0,0.00033971,5]
[362010537,1747935059627,-614.28,0.00033971,5]
[362010538,1747935059638,-420.0,0.00033971,5]
[362010539,1747935059647,-7277.43,0.00033971,5]
[362010540,1747935059657,-420.0,0.00033971,5]
[362010541,1747935059667,-420.0,0.00033971,5]
[362010542,1747935059676,-420.0,0.00033971,5]
[362010543,1747935059685,-420.0,0.00033971,5]
[362010544,1747935059695,-639.67,0.00033971,5]
[362010545,1747935059705,-756.23,0.00033971,5]
[362010546,1747935059715,-733.4,0.00033971,5]
[362010547,1747935059724,-420.0,0.00033971,5]
[362010548,1747935059733,-440.65,0.00033971,5]
[362010549,1747935059743,-649.32,0.00033971,5]
[362010550,1747935059752,-420.0,0.00033971,5]
[362010551,1747935059761,-420.0,0.00033971,5]
[362010552,1747935059771,-420.0,0.00033971,5]
[362010553,1747935059780,-420.0,0.00033971,5]
[362010554,1747935059790,-420.0,0.00033971,5]
[362010555,1747935059799,-420.0,0.00033971,5]
[362010556,1747935059808,-420.0,0.00033971,5]
[362010557,1747935059817,-420.0,0.00033971,5]
[362010558,1747935059826,-420.0,0.00033971,5]
[362010559,1747935059836,-420.0,0.00033971,5]
[362010560,1747935059845,-741.9,0.00033971,5]
[362010561,1747935059855,-497.19,0.00033971,5]
[362010562,1747935059864,-1998.51,0.00033971,5]
[362010563,1747935059873,-470.36,0.00033971,5]
[362010564,1747935059883,-420.0,0.00033971,5]
[362010565,1747935059893,-639.49,0.00033971,5]
[362010566,1747935059903,-420.0,0.00033971,5]
[362010567,1747935059913,-1494.47,0.00033971,5]
[362010568,1747935059923,-511.54,0.00033971,5]
[362010569,1747935059932,-420.0,0.00033971,5]
[362010570,1747935059942,-420.0,0.00033971,5]
[362010571,1747935059951,-708.15,0.00033971,5]
[362010572,1747935059962,-420.0,0.00033971,5]
[362010573,1747935059971,-503.81,0.00033971,5]
[362010574,1747935059981,-1263.37,0.00033971,5]
[362010575,1747935059991,-517.04,0.00033971,5]
[362010576,1747935060001,-536.17,0.00033971,5]
[362010577,1747935060011,-420.0,0.00033971,5]
[362010578,1747935060020,-420.0,0.00033971,5]
[362010579,1747935060029,-420.0,0.00033971,5]
[362010580,1747935060038,-517.27,0.00033971,5]
[362010581,1747935060047,-420.0,0.00033971,5]
[362010582,1747935060057,-420.0,0.00033971,5]
[362010583,1747935060066,-521.46,0.00033971,5]
[362010584,1747935060076,-742.81,0.00033971,5]
[362010585,1747935060085,-1985.71,0.00033971,2]
[362010586,1747935060094,-1151.71,0.00033971,5]
[362010587,1747935060103,-420.0,0.00033971,5]
[362010588,1747935060113,-469.35,0.00033971,5]
[362010589,1747935060124,-420.0,0.00033971,5]
[362010590,1747935060137,-420.0,0.00033971,5]
[362010591,1747935060148,-420.0,0.00033971,5]
[362010592,1747935060158,-420.0,0.00033971,5]
[362010593,1747935060168,-625.55,0.00033971,5]
[362010594,1747935060179,-420.0,0.00033971,5]
[362010595,1747935060189,-420.0,0.00033971,5]
[362010596,1747935060199,-592.81,0.00033971,5]
[362010597,1747935060209,-570.36,0.00033971,5]
[362010598,1747935060220,-396.49004106,0.00033971,5]
[362010599,1747935060230,-420.0,0.00033971,5]
[362010600,1747935060239,-420.0,0.00033971,5]
[362010601,1747935060248,-759.32,0.00033971,5]
[362010602,1747935060258,-432.61,0.00033971,5]
[362010603,1747935060267,-420.0,0.00033971,5]
[362010604,1747935060277,-420.0,0.00033971,5]
[362010605,1747935060287,-650.73,0.00033971,5]
[362010606,1747935060296,-637.2,0.00033971,5]